[Event "Reykjavik Open 2022"]
[Site "Reykjavik"]
[Date "2022.04.06"]
[Round "1.7"]
[White "Gupta, Abhijeet"]
[Black "Roe, Simon J"]
[Result "1-0"]
[ECO "D25"]
[WhiteElo "2628"]
[BlackElo "2211"]
[Annotator "ChessBase"]
[PlyCount "107"]
[EventDate "2022.04.06"]
[EventCountry "ISL"]
[SourceTitle "playchess.com"]
[Source "ChessBase"]
[SourceQuality "1"]
[TimeControl "40/5400+30:1800+30"]

1. d4 {[%emt 0:00:05]} d5 {[%emt 0:00:08]} 2. c4 {[%emt 0:00:07]} dxc4 {[%emt 0:00:07]} 3. Nf3 {[%emt 0:00:16]} Nf6 {[%emt 0:00:18]} 4. e3 {[%emt 0:00:14]} Bg4 {[%emt 0:00:33]} 5. Bxc4 {[%emt 0:00:15]} e6 {[%emt 0:00:16]} 6. h3 {[%emt 0:01:56]} Bh5 {[%emt 0:00:14]} 7. Nc3 {[%emt 0:00:59]} Nc6 {[%emt 0:03:02]} 8. Bb5 {[%emt 0:02:20]} Bb4 {[%emt 0:13:32]} 9. Qa4 {[%emt 0:03:23]} Bxc3+ {[%emt 0:14:51]} 10. bxc3 {[%emt 0:00:03]} Bxf3 {[%emt 0:00:06]} 11. gxf3 {[%emt 0:00:04]} O-O {[%emt 0:00:08]} 12. Bxc6 {[%emt 0:04:04]} bxc6 {[%emt 0:00:20]} 13. Qxc6 {[%emt 0:00:37]} Rb8 {[%emt 0:07:02]} 14. e4 {[%emt 0:02:30]} Nh5 {[%emt 0:11:24]} 15. Rg1 {[%emt 0:17:00]} Rb6 {[%emt 0:07:05]} 16. Qc5 {[%emt 0:11:57]} f5 {[%emt 0:01:27]} 17. a4 {[%emt 0:10:31]} Qd7 {[%emt 0:17:03]} 18. Qe5 {[%emt 0:02:19]} Qc6 {[%emt 0:05:55]} 19. d5 {[%emt 0:04:18]} exd5 {[%emt 0:04:38]} 20. Qxd5+ {[%emt 0:00:06]} Qxd5 {[%emt 0:00:05]} 21. exd5 {[%emt 0:00:03]} Re8+ {[%emt 0:01:29]} 22. Kf1 {[%emt 0:01:11]} Rb3 {[%emt 0:01:53]} 23. Bd2 {[%emt 0:01:56]} Rd8 {[%emt 0:02:29]} 24. c4 {[%emt 0:01:50]} Rb2 {[%emt 0:04:37]} 25. Be3 {[%emt 0:00:39]} Rb4 {[%emt 0:01:24]} 26. Rc1 {[%emt 0:01:40]} Rxa4 {[%emt 0:00:17]} 27. Kg2 {[%emt 0:00:03]} Nf6 {[%emt 0:01:42]} 28. Rgd1 {[%emt 0:03:42]} Kf7 {[%emt 0:00:34]} 29. Rd3 {[%emt 0:00:54]} h6 {[%emt 0:00:47]} 30. Rb3 {[%emt 0:00:08]} Rd7 {[%emt 0:00:50]} 31. Rb7 {[%emt 0:02:57]} a6 {[%emt 0:00:02]} 32. Rc2 {[%emt 0:01:01]} Ke8 {[%emt 0:00:59]} 33. Bc1 {[%emt 0:01:53]} Kf7 {[%emt 0:00:26]} 34. Bb2 {[%emt 0:00:41]} Ra2 {[%emt 0:00:56]} 35. Rc1 {[%emt 0:02:18]} Re7 {[%emt 0:00:37]} 36. Ra1 {[%emt 0:05:31]} Rxa1 {[%emt 0:00:05]} 37. Bxa1 {[%emt 0:00:03]} Ne8 {[%emt 0:00:36]} 38. c5 {[%emt 0:08:07]} Rd7 {[%emt 0:00:09]} 39. d6 {[%emt 0:00:21]} Ke6 {[%emt 0:00:42]} 40. Rb8 {[%emt 0:00:00]} Nf6 {[%emt 0:00:00]} 41. dxc7 {[%emt 0:15:16]} Rxc7 {[%emt 0:01:10]} 42. Rb6+ {[%emt 0:00:05]} Kd5 {[%emt 0:23:14]} 43. Bxf6 {[%emt 0:01:03]} gxf6 {[%emt 0:00:02]} 44. Rxa6 {[%emt 0:00:11]} Ke5 {[%emt 0:03:50]} 45. Ra5 {[%emt 0:02:45]} Rc6 {[%emt 0:01:31]} 46. Kg3 {[%emt 0:00:28]} f4+ {[%emt 0:00:21]} 47. Kg4 {[%emt 0:00:10]} f5+ {[%emt 0:00:46]} 48. Kh5 {[%emt 0:00:48]} Kd4 {[%emt 0:00:54]} 49. h4 {[%emt 0:02:38]} Kd3 {[%emt 0:00:19]} 50. Ra4 {[%emt 0:00:52]} Ke2 {[%emt 0:01:42]} 51. Rxf4 {[%emt 0:00:07]} Rxc5 {[%emt 0:00:03]} 52. Kxh6 {[%emt 0:00:07]} Kxf2 {[%emt 0:00:05]} 53. Kg5 {[%emt 0:00:12]} Kg3 {[%emt 0:00:54]} 54. Rxf5 {[%emt 0:00:26]} 1-0

[Event "Reykjavik Open 2022"]
[Site "Reykjavik"]
[Date "2022.04.06"]
[Round "1.8"]
[White "Jaksland, Tim"]
[Black "Warmerdam, Max"]
[Result "0-1"]
[ECO "B22"]
[WhiteElo "2201"]
[BlackElo "2607"]
[Annotator "RC"]
[PlyCount "95"]
[EventDate "2022.04.06"]
[EventCountry "ISL"]
[SourceTitle "playchess.com"]
[Source "ChessBase"]
[SourceQuality "1"]
[TimeControl "40/5400+30:1800+30"]

1. e4 {[%emt 0:00:03]} c5 {[%emt 0:00:18]} 2. c3 {[%emt 0:00:19]} d5 {[%emt 0:00:33]} 3. exd5 {[%emt 0:00:14]} Nf6 {[%emt 0:00:11]} 4. d4 {[%emt 0:01:26]} Nxd5 {[%emt 0:00:18]} 5. Nf3 {[%emt 0:01:47]} cxd4 {[%emt 0:00:34]} 6. Nxd4 {[%emt 0:04:02]} e5 {[%emt 0:01:04]} 7. Bb5+ {[%emt 0:01:49]} Bd7 {[%emt 0:00:07]} 8. Qe2 {[%emt 0:01:08]} Qe7 {[%emt 0:00:14]} 9. Bxd7+ {[%emt 0:09:34]} Nxd7 {[%emt 0:01:10]} 10. Nb5 {[%emt 0:02:02]} a6 {[%emt 0:04:06]} 11. c4 {[%emt 0:12:33]} Rc8 {[%emt 0:02:44]} 12. O-O {[%emt 0:11:21]} Nf4 {[%emt 0:12:01]} 13. Bxf4 {[%emt 0:00:31]} axb5 {[%emt 0:00:05]} 14. Be3 {[%emt 0:01:18]} bxc4 {[%emt 0:00:51]} 15. Rc1 {[%emt 0:03:12]} Qe6 {[%emt 0:06:48]} 16. b3 {[%emt 0:06:49]} Bb4 {[%emt 0:25:02]} 17. a3 {[%emt 0:06:50]} Ba5 {[%emt 0:03:36]} 18. Rxc4 {[%emt 0:13:00]} Rxc4 {[%emt 0:00:06]} 19. Qxc4 {[%emt 0:00:33]} Qxc4 {[%emt 0:00:06]} 20. bxc4 {[%emt 0:00:04]} Ke7 {[%emt 0:00:16]} 21. Nd2 {[%emt 0:01:17]} Rc8 {[%emt 0:06:38]} 22. Rb1 {[%emt 0:03:01]} b6 {[%emt 0:00:34]} 23. Rc1 {[%emt 0:00:48]} f5 {[%emt 0:02:22]} 24. g3 {[%emt 0:12:26]} Bxd2 {[%emt 0:04:24]} 25. Bxd2 {[%emt 0:00:06]} Ke6 {[%emt 0:00:07]} 26. Kf1 {[%emt 0:02:05]} e4 {[%emt 0:01:13]} 27. Be3 {[%emt 0:01:29]} Kd6 {[%emt 0:03:44]} 28. Ke2 {[%emt 0:01:05]} Ra8 {[%emt 0:00:23]} 29. Rc3 {[%emt 0:00:37]} Kc6 {[%emt 0:02:01]} 30. Bd4 {[%emt 0:00:37]} g6 {[%emt 0:01:02]} 31. Ke3 {[%emt 0:00:43]} Nc5 {[%emt 0:01:50]} 32. h4 {[%emt 0:02:12]} Rd8 {[%emt 0:02:13]} 33. Bf6 {[%emt 0:00:38]} Rd1 {[%emt 0:00:52]} 34. Ke2 {[%emt 0:00:27]} Rb1 {[%emt 0:00:28]} 35. Bd4 {[%emt 0:00:40]} Na4 {[%emt 0:03:13]} 36. Re3 {[%emt 0:00:58]} Rc1 {[%emt 0:00:05]} 37. Bf6 {[%emt 0:00:39]} Rxc4 {[%emt 0:00:14]} 38. Rb3 {[%emt 0:00:25]} Rc2+ {[%emt 0:00:21]} 39. Ke3 {[%emt 0:00:11]} Nc5 {[%emt 0:00:06]} 40. Rb2 {[%emt 0:00:00]} Rc4 {[%emt 0:00:00]} 41. Rb4 {[%emt 0:14:06]} Rc2 {[%emt 0:12:49]} 42. Rb2 {[%emt 0:01:22]} Rc1 {[%emt 0:04:12]} 43. Rb4 {[%emt 0:06:25]} Rd1 {[%emt 0:02:05]} 44. Rd4 {[%emt 0:02:24]} Re1+ {[%emt 0:00:30]} 45. Kd2 {[%emt 0:00:17]} Ra1 {[%emt 0:00:34]} 46. Rb4 {[%emt 0:06:32]} Rc1 {[%emt 0:00:02]} 47. Rb2 {[%emt 0:00:02]} Ra1 {[%emt 0:00:01]} 48. Rxb6+ {[%emt 0:00:03]} 0-1

[Event "Reykjavik Open 2022"]
[Site "Reykjavik"]
[Date "2022.04.06"]
[Round "1.9"]
[White "Andersen, Mads"]
[Black "Lohia, Sohum"]
[Result "1/2-1/2"]
[ECO "C54"]
[WhiteElo "2570"]
[BlackElo "2251"]
[Annotator "ChessBase"]
[PlyCount "71"]
[EventDate "2022.04.06"]
[EventCountry "ISL"]
[SourceTitle "playchess.com"]
[Source "ChessBase"]
[SourceQuality "1"]
[TimeControl "40/5400+30:1800+30"]

1. e4 {[%emt 0:00:08]} e5 {[%emt 0:00:07]} 2. Nf3 {[%emt 0:00:06]} Nc6 {[%emt 0:00:06]} 3. Bc4 {[%emt 0:00:07]} Nf6 {[%emt 0:00:08]} 4. d3 {[%emt 0:00:07]} Bc5 {[%emt 0:00:17]} 5. c3 {[%emt 0:00:09]} a5 {[%emt 0:00:25]} 6. O-O {[%emt 0:00:28]} d6 {[%emt 0:00:19]} 7. Re1 {[%emt 0:00:19]} O-O {[%emt 0:00:57]} 8. h3 {[%emt 0:00:38]} h6 {[%emt 0:00:21]} 9. d4 {[%emt 0:01:53]} Bb6 {[%emt 0:01:48]} 10. Bb3 {[%emt 0:03:52]} Re8 {[%emt 0:02:45]} 11. Bc2 {[%emt 0:00:22]} exd4 {[%emt 0:14:53]} 12. cxd4 {[%emt 0:00:48]} Nb4 {[%emt 0:03:14]} 13. Nc3 {[%emt 0:00:11]} Nxc2 {[%emt 0:00:44]} 14. Qxc2 {[%emt 0:00:03]} c6 {[%emt 0:03:17]} 15. Re2 {[%emt 0:08:24]} Be6 {[%emt 0:06:21]} 16. Be3 {[%emt 0:01:54]} Qc7 {[%emt 0:12:09]} 17. Nd2 {[%emt 0:09:06]} d5 {[%emt 0:08:05]} 18. e5 {[%emt 0:00:37]} Nd7 {[%emt 0:00:23]} 19. f4 {[%emt 0:00:49]} f5 {[%emt 0:05:28]} 20. Nf3 {[%emt 0:03:46]} Nf8 {[%emt 0:01:37]} 21. Kh2 {[%emt 0:07:59]} Qd7 {[%emt 0:02:28]} 22. Rg1 {[%emt 0:02:05]} Rac8 {[%emt 0:08:00]} 23. Na4 {[%emt 0:12:38]} Ba7 {[%emt 0:01:13]} 24. g3 {[%emt 0:09:31]} b6 {[%emt 0:10:25]} 25. Rc1 {[%emt 0:07:35]} Bf7 {[%emt 0:01:28]} 26. Rg2 {[%emt 0:10:04]} c5 {[%emt 0:04:14]} 27. Nc3 {[%emt 0:00:19]} b5 {[%emt 0:03:55]} 28. Qf2 {[%emt 0:02:06]} Ne6 {[%emt 0:01:21]} 29. Rd1 {[%emt 0:03:40]} b4 {[%emt 0:01:17]} 30. Ne2 {[%emt 0:00:13]} Bh5 {[%emt 0:01:06]} 31. g4 {[%emt 0:06:15]} fxg4 {[%emt 0:00:51]} 32. hxg4 {[%emt 0:00:10]} cxd4 {[%emt 0:00:51]} 33. Nfxd4 {[%emt 0:02:23]} Bxd4 {[%emt 0:01:11]} 34. gxh5 {[%emt 0:03:30]} Bxe3 {[%emt 0:00:14]} 35. Qxe3 {[%emt 0:00:02]} Qf7 {[%emt 0:00:19]} 36. Qf3 {[%emt 0:04:43]} 1/2-1/2

[Event "Reykjavik Open 2022"]
[Site "Reykjavik"]
[Date "2022.04.06"]
[Round "1.10"]
[White "Player, Edmund C"]
[Black "Fier, Alexandr"]
[Result "0-1"]
[ECO "B56"]
[WhiteElo "2196"]
[BlackElo "2583"]
[Annotator "RC"]
[PlyCount "46"]
[EventDate "2022.04.06"]
[EventCountry "ISL"]
[SourceTitle "playchess.com"]
[Source "ChessBase"]
[SourceQuality "1"]
[TimeControl "40/5400+30:1800+30"]

1. e4 {[%emt 0:00:02]} c5 {[%emt 0:00:05]} 2. Nf3 {[%emt 0:00:04]} d6 {[%emt 0:00:05]} 3. d4 {[%emt 0:00:06]} cxd4 {[%emt 0:00:03]} 4. Nxd4 {[%emt 0:00:05]} Nf6 {[%emt 0:00:04]} 5. Nc3 {[%emt 0:00:07]} Nc6 {[%emt 0:00:04]} 6. f3 {[%emt 0:08:45]} e5 {[%emt 0:00:31]} 7. Nb3 {[%emt 0:02:28]} Be7 {[%emt 0:00:06]} 8. Be3 {[%emt 0:05:26]} Be6 {[%emt 0:00:07]} 9. Qd2 {[%emt 0:03:36]} O-O {[%emt 0:00:06]} 10. O-O-O {[%emt 0:04:26]} a5 {[%emt 0:00:20]} 11. Qf2 {[%emt 0:21:21]} Qb8 {[%emt 0:04:12]} 12. a3 {[%emt 0:18:20]} Rc8 {[%emt 0:01:24]} 13. Kb1 {[%emt 0:02:34]} a4 {[%emt 0:01:09]} 14. Nc1 {[%emt 0:02:30]} b5 {[%emt 0:00:31]} 15. Nd5 {[%emt 0:07:26]} b4 {[%emt 0:01:34]} 16. Nxe7+ {[%emt 0:03:11]} Nxe7 {[%emt 0:00:05]} 17. axb4 {[%emt 0:01:11]} Qxb4 {[%emt 0:00:05]} 18. Qd2 {[%emt 0:00:51]} Qb7 {[%emt 0:00:05]} 19. Qxd6 {[%emt 0:04:23]} a3 {[%emt 0:00:03]} 20. b3 {[%emt 0:03:32]} Nc6 {[%emt 0:00:05]} 21. Be2 {[%emt 0:07:09]} Nb4 {[%emt 0:01:23]} 22. Rd2 {[%emt 0:01:40]} a2+ {[%emt 0:01:23]} 23. Nxa2 {[%emt 0:00:34]} Nxa2 {[%emt 0:00:18]} 0-1

[Event "Reykjavik Open 2022"]
[Site "Reykjavik"]
[Date "2022.04.06"]
[Round "1.11"]
[White "Steingrimsson, Hedinn"]
[Black "Solnicki, Michal"]
[Result "1-0"]
[ECO "B38"]
[WhiteElo "2535"]
[BlackElo "2182"]
[Annotator "RC"]
[PlyCount "75"]
[EventDate "2022.04.06"]
[EventCountry "ISL"]
[SourceTitle "playchess.com"]
[Source "ChessBase"]
[SourceQuality "1"]
[TimeControl "40/5400+30:1800+30"]

1. c4 {[%emt 0:11:24]} c5 {[%emt 0:00:49]} 2. Nf3 {[%emt 0:00:40]} Nc6 {[%emt 0:00:24]} 3. d4 {[%emt 0:00:10]} cxd4 {[%emt 0:00:12]} 4. Nxd4 {[%emt 0:00:04]} g6 {[%emt 0:00:18]} 5. e4 {[%emt 0:00:16]} Bg7 {[%emt 0:00:31]} 6. Be3 {[%emt 0:00:16]} Nf6 {[%emt 0:01:55]} 7. Nc3 {[%emt 0:00:14]} O-O {[%emt 0:12:36]} 8. Be2 {[%emt 0:00:22]} e6 {[%emt 0:03:49]} 9. Nxc6 {[%emt 0:06:41]} dxc6 {[%emt 0:01:34]} 10. e5 {[%emt 0:01:00]} Nd7 {[%emt 0:03:17]} 11. f4 {[%emt 0:00:19]} f6 {[%emt 0:02:20]} 12. exf6 {[%emt 0:04:39]} Qxf6 {[%emt 0:06:22]} 13. O-O {[%emt 0:11:34]} e5 {[%emt 0:06:48]} 14. Kh1 {[%emt 0:04:56]} Qe7 {[%emt 0:03:42]} 15. Qd2 {[%emt 0:01:32]} e4 {[%emt 0:06:08]} 16. g4 {[%emt 0:09:05]} Nf6 {[%emt 0:06:14]} 17. Rg1 {[%emt 0:01:00]} Bd7 {[%emt 0:08:39]} 18. Rad1 {[%emt 0:08:15]} Rf7 {[%emt 0:06:06]} 19. Qd6 {[%emt 0:10:49]} Qe8 {[%emt 0:02:25]} 20. Bd4 {[%emt 0:08:39]} Be6 {[%emt 0:08:19]} 21. f5 {[%emt 0:03:10]} Bc8 {[%emt 0:08:17]} 22. g5 {[%emt 0:03:28]} Bf8 {[%emt 0:01:47]} 23. Qg3 {[%emt 0:01:04]} Nd7 {[%emt 0:00:42]} 24. fxg6 {[%emt 0:02:52]} hxg6 {[%emt 0:00:03]} 25. Qh4 {[%emt 0:00:42]} Rh7 {[%emt 0:03:04]} 26. Qxe4 {[%emt 0:00:10]} Re7 {[%emt 0:00:20]} 27. Qh4 {[%emt 0:00:47]} Rh7 {[%emt 0:00:18]} 28. Qg3 {[%emt 0:04:15]} Nc5 {[%emt 0:00:21]} 29. Rge1 {[%emt 0:00:20]} Rh3 {[%emt 0:03:30]} 30. Qg2 {[%emt 0:01:14]} Qf7 {[%emt 0:02:35]} 31. Rf1 {[%emt 0:01:06]} Bf5 {[%emt 0:00:57]} 32. Rxf5 {[%emt 0:01:13]} Qxf5 {[%emt 0:00:10]} 33. Bg4 {[%emt 0:00:03]} Rxh2+ {[%emt 0:01:48]} 34. Qxh2 {[%emt 0:02:09]} Qxg4 {[%emt 0:00:06]} 35. Qh8+ {[%emt 0:00:03]} Kf7 {[%emt 0:00:05]} 36. Qf6+ {[%emt 0:00:02]} Ke8 {[%emt 0:00:22]} 37. Re1+ {[%emt 0:00:12]} Kd7 {[%emt 0:00:28]} 38. Qf7+ {[%emt 0:00:02]} 1-0

[Event "Reykjavik Open 2022"]
[Site "Reykjavik"]
[Date "2022.04.06"]
[Round "1.12"]
[White "Cornette, Matthieu"]
[Black "Popvasilev, Kaloyan"]
[Result "1-0"]
[ECO "B66"]
[WhiteElo "2571"]
[BlackElo "2191"]
[Annotator "RC"]
[PlyCount "59"]
[EventDate "2022.04.06"]
[EventCountry "ISL"]
[SourceTitle "playchess.com"]
[Source "ChessBase"]
[SourceQuality "1"]
[TimeControl "40/5400+30:1800+30"]

1. e4 {[%emt 0:00:06]} c5 {[%emt 0:00:09]} 2. Nf3 {[%emt 0:00:15]} d6 {[%emt 0:00:11]} 3. d4 {[%emt 0:00:36]} Nf6 {[%emt 0:00:36]} 4. Nc3 {[%emt 0:00:54]} cxd4 {[%emt 0:00:15]} 5. Nxd4 {[%emt 0:00:06]} Nc6 {[%emt 0:00:26]} 6. Bg5 {[%emt 0:01:09]} e6 {[%emt 0:02:06]} 7. Qd3 {[%emt 0:00:56]} a6 {[%emt 0:03:41]} 8. Nxc6 {[%emt 0:00:45]} bxc6 {[%emt 0:00:06]} 9. O-O-O {[%emt 0:00:08]} h6 {[%emt 0:19:13]} 10. Bf4 {[%emt 0:01:51]} d5 {[%emt 0:07:50]} 11. Be2 {[%emt 0:04:21]} Be7 {[%emt 0:01:12]} 12. Qg3 {[%emt 0:03:05]} Kf8 {[%emt 0:10:59]} 13. h4 {[%emt 0:04:28]} a5 {[%emt 0:06:32]} 14. Bc7 {[%emt 0:05:33]} Qd7 {[%emt 0:08:10]} 15. exd5 {[%emt 0:02:13]} exd5 {[%emt 0:06:45]} 16. Rhe1 {[%emt 0:01:20]} a4 {[%emt 0:09:32]} 17. Bf3 {[%emt 0:05:48]} a3 {[%emt 0:07:59]} 18. b3 {[%emt 0:03:31]} Ne8 {[%emt 0:02:32]} 19. Be5 {[%emt 0:01:27]} Qf5 {[%emt 0:02:05]} 20. Rd4 {[%emt 0:12:43]} Qh7 {[%emt 0:04:23]} 21. Bxd5 {[%emt 0:14:49]} cxd5 {[%emt 0:00:18]} 22. Nxd5 {[%emt 0:00:02]} Be6 {[%emt 0:05:46]} 23. Nxe7 {[%emt 0:00:12]} Kxe7 {[%emt 0:00:04]} 24. Bd6+ {[%emt 0:00:25]} Kd7 {[%emt 0:00:59]} 25. Qf3 {[%emt 0:03:24]} Nxd6 {[%emt 0:00:37]} 26. Qb7+ {[%emt 0:00:08]} Ke8 {[%emt 0:00:19]} 27. Qc6+ {[%emt 0:02:41]} Ke7 {[%emt 0:00:22]} 28. Qxd6+ {[%emt 0:00:06]} Kf6 {[%emt 0:00:16]} 29. Rf4+ {[%emt 0:01:44]} Kg6 {[%emt 0:00:06]} 30. Rxe6+ {[%emt 0:00:16]} 1-0

[Event "Reykjavik Open 2022"]
[Site "Reykjavik"]
[Date "2022.04.06"]
[Round "1.13"]
[White "Ptacnikova, Lenka"]
[Black "Gretarsson, Hjorvar Steinn"]
[Result "0-1"]
[ECO "A20"]
[WhiteElo "2173"]
[BlackElo "2548"]
[Annotator "RC"]
[PlyCount "70"]
[EventDate "2022.04.06"]
[EventCountry "ISL"]
[SourceTitle "playchess.com"]
[Source "ChessBase"]
[SourceQuality "1"]
[TimeControl "40/5400+30:1800+30"]

1. c4 {[%emt 0:00:02]} f5 {[%emt 0:01:27]} 2. g3 {[%emt 0:01:18]} Nf6 {[%emt 0:00:10]} 3. Bg2 {[%emt 0:00:04]} e5 {[%emt 0:00:35]} 4. d4 {[%emt 0:00:37]} e4 {[%emt 0:02:28]} 5. Nh3 {[%emt 0:02:08]} c6 {[%emt 0:06:23]} 6. O-O {[%emt 0:00:38]} Be7 {[%emt 0:04:36]} 7. Nc3 {[%emt 0:13:43]} O-O {[%emt 0:11:57]} 8. f3 {[%emt 0:06:40]} d5 {[%emt 0:00:08]} 9. cxd5 {[%emt 0:08:28]} cxd5 {[%emt 0:01:32]} 10. Bg5 {[%emt 0:10:29]} Be6 {[%emt 0:08:24]} 11. Rc1 {[%emt 0:06:57]} Nc6 {[%emt 0:03:54]} 12. Na4 {[%emt 0:02:49]} h6 {[%emt 0:02:48]} 13. Bxf6 {[%emt 0:00:47]} Bxf6 {[%emt 0:00:27]} 14. e3 {[%emt 0:00:26]} Qe7 {[%emt 0:25:51]} 15. Nc5 {[%emt 0:16:24]} exf3 {[%emt 0:03:44]} 16. Qxf3 {[%emt 0:01:10]} Bf7 {[%emt 0:00:58]} 17. Kh1 {[%emt 0:07:40]} g6 {[%emt 0:07:36]} 18. g4 {[%emt 0:04:18]} b6 {[%emt 0:04:09]} 19. Nd3 {[%emt 0:10:13]} Rac8 {[%emt 0:02:36]} 20. gxf5 {[%emt 0:00:21]} g5 {[%emt 0:00:04]} 21. Qg3 {[%emt 0:01:34]} Kh7 {[%emt 0:00:38]} 22. Rc3 {[%emt 0:01:57]} Na5 {[%emt 0:01:52]} 23. Rfc1 {[%emt 0:00:23]} Rxc3 {[%emt 0:00:26]} 24. Rxc3 {[%emt 0:00:39]} Nc4 {[%emt 0:00:21]} 25. b3 {[%emt 0:00:46]} Nxe3 {[%emt 0:00:41]} 26. Ne5 {[%emt 0:01:10]} Nxf5 {[%emt 0:05:50]} 27. Qd3 {[%emt 0:00:21]} Bg6 {[%emt 0:00:10]} 28. Nxg6 {[%emt 0:00:24]} Kxg6 {[%emt 0:01:02]} 29. Rc1 {[%emt 0:01:33]} Qe3 {[%emt 0:00:53]} 30. Qb1 {[%emt 0:00:18]} Bxd4 {[%emt 0:01:41]} 31. Rf1 {[%emt 0:01:08]} Qe5 {[%emt 0:01:20]} 32. Bf3 {[%emt 0:00:32]} Kg7 {[%emt 0:00:38]} 33. Rd1 {[%emt 0:00:31]} Ne3 {[%emt 0:01:07]} 34. Bh5 {[%emt 0:00:07]} Rf6 {[%emt 0:00:21]} 35. Rc1 {[%emt 0:00:13]} Bc5 {[%emt 0:00:13]} 0-1

[Event "Reykjavik Open 2022"]
[Site "Reykjavik"]
[Date "2022.04.06"]
[Round "1.14"]
[White "Louis, Thibault"]
[Black "Yoo, Christopher Woojin"]
[Result "0-1"]
[ECO "B12"]
[WhiteElo "2181"]
[BlackElo "2514"]
[Annotator "RC"]
[PlyCount "46"]
[EventDate "2022.04.06"]
[EventCountry "ISL"]
[SourceTitle "playchess.com"]
[Source "ChessBase"]
[SourceQuality "1"]
[TimeControl "40/5400+30:1800+30"]

1. e4 {[%emt 0:00:17]} c6 {[%emt 0:00:13]} 2. d4 {[%emt 0:02:35]} d5 {[%emt 0:00:06]} 3. e5 {[%emt 0:00:04]} Bf5 {[%emt 0:00:09]} 4. c4 {[%emt 0:00:07]} e6 {[%emt 0:04:15]} 5. Nc3 {[%emt 0:00:58]} dxc4 {[%emt 0:02:04]} 6. Bxc4 {[%emt 0:01:16]} Ne7 {[%emt 0:02:46]} 7. h3 {[%emt 0:07:37]} Bg6 {[%emt 0:03:59]} 8. Nf3 {[%emt 0:09:07]} Nd7 {[%emt 0:01:48]} 9. Bg5 {[%emt 0:08:39]} h6 {[%emt 0:02:03]} 10. Bh4 {[%emt 0:01:37]} Qb6 {[%emt 0:04:24]} 11. Bxe7 {[%emt 0:01:47]} Bxe7 {[%emt 0:00:19]} 12. O-O {[%emt 0:00:09]} Qxb2 {[%emt 0:03:41]} 13. Ne2 {[%emt 0:05:17]} Qc2 {[%emt 0:02:40]} 14. Rc1 {[%emt 0:11:39]} Qxd1 {[%emt 0:00:30]} 15. Rfxd1 {[%emt 0:00:06]} Ba3 {[%emt 0:04:56]} 16. Rc3 {[%emt 0:00:12]} Bb4 {[%emt 0:00:51]} 17. Rb3 {[%emt 0:01:35]} Bc2 {[%emt 0:06:15]} 18. Rxb4 {[%emt 0:00:07]} Bxd1 {[%emt 0:00:04]} 19. Rxb7 {[%emt 0:00:15]} Ke7 {[%emt 0:02:25]} 20. Nc3 {[%emt 0:02:28]} Bxf3 {[%emt 0:00:16]} 21. gxf3 {[%emt 0:00:06]} Rhb8 {[%emt 0:00:06]} 22. Rc7 {[%emt 0:00:14]} Kd8 {[%emt 0:00:36]} 23. Rxc6 {[%emt 0:00:18]} Rc8 {[%emt 0:00:04]} 0-1

[Event "Reykjavik Open 2022"]
[Site "Reykjavik"]
[Date "2022.04.06"]
[Round "1.15"]
[White "Maze, Sebastien"]
[Black "Coursaget, Nicolas"]
[Result "1-0"]
[ECO "B05"]
[WhiteElo "2527"]
[BlackElo "2185"]
[Annotator "RC"]
[PlyCount "83"]
[EventDate "2022.04.06"]
[EventCountry "ISL"]
[SourceTitle "playchess.com"]
[Source "ChessBase"]
[SourceQuality "1"]
[TimeControl "40/5400+30:1800+30"]

1. e4 {[%emt 0:00:03]} Nf6 {[%emt 0:00:18]} 2. e5 {[%emt 0:00:03]} Nd5 {[%emt 0:00:08]} 3. d4 {[%emt 0:00:03]} d6 {[%emt 0:00:02]} 4. Nf3 {[%emt 0:00:06]} Bg4 {[%emt 0:01:22]} 5. Be2 {[%emt 0:00:55]} e6 {[%emt 0:00:53]} 6. h3 {[%emt 0:00:14]} Bf5 {[%emt 0:01:02]} 7. O-O {[%emt 0:00:40]} Be7 {[%emt 0:00:30]} 8. a3 {[%emt 0:05:07]} a5 {[%emt 0:02:25]} 9. c4 {[%emt 0:00:52]} Nb6 {[%emt 0:00:21]} 10. exd6 {[%emt 0:01:11]} cxd6 {[%emt 0:00:20]} 11. Nc3 {[%emt 0:00:09]} N8d7 {[%emt 0:03:22]} 12. a4 {[%emt 0:09:12]} O-O {[%emt 0:01:25]} 13. Nb5 {[%emt 0:04:23]} h6 {[%emt 0:06:03]} 14. b3 {[%emt 0:02:12]} Nc8 {[%emt 0:03:44]} 15. Bf4 {[%emt 0:00:46]} Nf6 {[%emt 0:02:19]} 16. Be3 {[%emt 0:05:56]} Ne4 {[%emt 0:05:13]} 17. Rc1 {[%emt 0:08:37]} Bh7 {[%emt 0:05:27]} 18. d5 {[%emt 0:07:49]} e5 {[%emt 0:01:23]} 19. Bd3 {[%emt 0:00:12]} Nc5 {[%emt 0:03:38]} 20. Bxh7+ {[%emt 0:00:33]} Kxh7 {[%emt 0:00:01]} 21. Bxc5 {[%emt 0:00:18]} dxc5 {[%emt 0:00:01]} 22. Nxe5 {[%emt 0:00:31]} f5 {[%emt 0:00:45]} 23. Qh5 {[%emt 0:00:40]} Ra6 {[%emt 0:00:29]} 24. f4 {[%emt 0:02:10]} g6 {[%emt 0:03:04]} 25. Qf3 {[%emt 0:00:16]} Raf6 {[%emt 0:00:24]} 26. Rce1 {[%emt 0:00:26]} Bd6 {[%emt 0:00:41]} 27. Re2 {[%emt 0:00:27]} Bb8 {[%emt 0:00:31]} 28. Rfe1 {[%emt 0:00:18]} g5 {[%emt 0:00:16]} 29. Nd3 {[%emt 0:00:24]} g4 {[%emt 0:01:11]} 30. hxg4 {[%emt 0:00:24]} fxg4 {[%emt 0:00:11]} 31. Qe4+ {[%emt 0:00:06]} Kg7 {[%emt 0:01:13]} 32. g3 {[%emt 0:00:12]} b6 {[%emt 0:01:07]} 33. Rh2 {[%emt 0:02:30]} Nd6 {[%emt 0:05:13]} 34. Qe7+ {[%emt 0:00:43]} Qxe7 {[%emt 0:00:41]} 35. Rxe7+ {[%emt 0:00:03]} Kg8 {[%emt 0:01:42]} 36. Nxd6 {[%emt 0:01:19]} Bxd6 {[%emt 0:00:01]} 37. Re4 {[%emt 0:00:22]} Kg7 {[%emt 0:00:30]} 38. Rh4 {[%emt 0:00:23]} Kg6 {[%emt 0:00:30]} 39. Rxg4+ {[%emt 0:00:33]} Kf5 {[%emt 0:00:23]} 40. Nf2 {[%emt 0:00:00]} h5 {[%emt 0:00:00]} 41. Re5+ {[%emt 0:00:40]} Bxe5 {[%emt 0:01:26]} 42. Rg5# {[%emt 0:01:46]} 1-0